[Event "Titled Tuesday Blitz October 18 Late 2022"]
[White "Baskakov, Egor"]
[Black "Rosen, Eric"]
[WhiteFideId "24197866"]
[BlackFideId "2032562"]
[WhiteElo "2211"]
[BlackElo "2362"]
[Result "1-0"]
[Round "08"]
[TimeControl "180+1"]
[Date "2022.10.18"]
[WhiteClock "0:01:12"]
[BlackClock "0:00:01"]

1. e4 {[%clk 0:03:00]}  c5 {[%clk 0:02:57]} 2. Nf3 {[%clk 0:03:00]}  d6 {[%clk 0:02:56]} 3. d4 {[%clk 0:03:00]}  Nf6 {[%clk 0:02:57]} 4. Nc3 {[%clk 0:03:00]}  cxd4 {[%clk 0:02:57]} 5. Nxd4 {[%clk 0:03:01]}  g6 {[%clk 0:02:57]} 6. g3 {[%clk 0:03:01]}  Bg7 {[%clk 0:02:57]} 7. Bg2 {[%clk 0:03:01]}  O-O {[%clk 0:02:58]} 8. h3 {[%clk 0:03:00]}  Nc6 {[%clk 0:02:57]} 9. Nde2 {[%clk 0:03:00]}  Rb8 {[%clk 0:02:53]} 10. a4 {[%clk 0:03:00]}  b6 {[%clk 0:02:51]} 11. O-O {[%clk 0:02:59]}  Bb7 {[%clk 0:02:51]} 12. Nd5 {[%clk 0:03:00]}  Re8 {[%clk 0:02:48]} 13. Re1 {[%clk 0:02:57]}  Nd7 {[%clk 0:02:46]} 14. c3 {[%clk 0:02:52]}  e6 {[%clk 0:02:43]} 15. Ndf4 {[%clk 0:02:51]}  Qe7 {[%clk 0:02:42]} 16. Be3 {[%clk 0:02:50]}  Nde5 {[%clk 0:02:42]} 17. b3 {[%clk 0:02:49]}  Rbd8 {[%clk 0:02:41]} 18. c4 {[%clk 0:02:49]}  Nb4 {[%clk 0:02:32]} 19. Rb1 {[%clk 0:02:46]}  Bc6 {[%clk 0:02:03]} 20. Qd2 {[%clk 0:02:44]}  d5 {[%clk 0:01:41]} 21. exd5 {[%clk 0:02:43]}  exd5 {[%clk 0:01:41]} 22. cxd5 {[%clk 0:02:35]}  Bb7 {[%clk 0:00:38]} 23. Rbd1 {[%clk 0:01:36]}  Qd6 {[%clk 0:00:38]} 24. Nc3 {[%clk 0:01:31]}  a5 {[%clk 0:00:29]} 25. Ne4 {[%clk 0:01:26]}  Qc7 {[%clk 0:00:24]} 26. d6 {[%clk 0:01:26]}  Qb8 {[%clk 0:00:24]} 27. Bxb6 {[%clk 0:01:25]}  Bxe4 {[%clk 0:00:22]} 28. Bc7 {[%clk 0:01:26]}  Qxc7 {[%clk 0:00:05]} 29. dxc7 {[%clk 0:01:25]}  Rxd2 {[%clk 0:00:05]} 30. Rxd2 {[%clk 0:01:24]}  Bxg2 {[%clk 0:00:04]} 31. Rxe5 {[%clk 0:01:16]}  Bxe5 {[%clk 0:00:02]} 32. Rd8 {[%clk 0:01:16]}  Rxd8 {[%clk 0:00:01]} 33. cxd8=Q+ {[%clk 0:01:16]}  Kg7 {[%clk 0:00:01]} 34. Kxg2 {[%clk 0:01:16]}  h5 {[%clk 0:00:01]} 35. Nd3 {[%clk 0:01:13]}  Bf6 {[%clk 0:00:01]} 36. Qxf6+ {[%clk 0:01:10]}  Kxf6 {[%clk 0:00:01]} 37. Nxb4 {[%clk 0:01:11]}  axb4 {[%clk 0:00:01]} 38. Kf3 {[%clk 0:01:11]}  Ke5 {[%clk 0:00:02]} 39. Ke3 {[%clk 0:01:12]}  Kd5 {[%clk 0:00:02]} 40. Kd3 {[%clk 0:01:12]}  g5 {[%clk 0:00:02]} 41. h4 {[%clk 0:01:11]}  f6 {[%clk 0:00:02]} 42. f4 {[%clk 0:01:11]}  Ke6 {[%clk 0:00:01]} 43. fxg5 {[%clk 0:01:10]}  fxg5 {[%clk 0:00:02]} 44. hxg5 {[%clk 0:01:11]}  Kf5 {[%clk 0:00:02]} 45. a5 {[%clk 0:01:11]}  Kxg5 {[%clk 0:00:02]} 46. Ke3 {[%clk 0:01:10]}  Kg4 {[%clk 0:00:03]} 47. Kf2 {[%clk 0:01:11]}  Kf5 {[%clk 0:00:03]} 48. a6 {[%clk 0:01:11]}  Ke4 {[%clk 0:00:03]} 49. a7 {[%clk 0:01:11]}  Kd3 {[%clk 0:00:04]} 50. a8=Q {[%clk 0:01:12]}  Kc3 {[%clk 0:00:05]} 51. Qg8 {[%clk 0:01:12]}  Kb2 {[%clk 0:00:04]} 52. Qc4 {[%clk 0:01:12]}  Ka3 {[%clk 0:00:05]} 53. Ke2 {[%clk 0:01:12]}  h4 {[%clk 0:00:05]} 54. Kd2 {[%clk 0:01:12]}  h3 {[%clk 0:00:01]} 55. Kc2 {[%clk 0:01:12]}  h2 {[%clk 0:00:01]} 56. Qa6# {[%clk 0:01:12]} 1-0


[Site "https://www.chess.com"]

[Event "Titled Tuesday Blitz October 18 Late 2022"]
[White "Bilan, Danila"]
[Black "Zverev, Lev"]
[WhiteFideId "24161918"]
[BlackFideId "24250775"]
[WhiteElo "2203"]
[BlackElo "2207"]
[Result "0-1"]
[Round "08"]
[TimeControl "180+1"]
[Date "2022.10.18"]
[WhiteClock "0:00:03"]
[BlackClock "0:01:30"]

1. d4 {[%clk 0:03:00]}  h5 {[%clk 0:02:58]} 2. Nf3 {[%clk 0:02:58]}  h4 {[%clk 0:02:58]} 3. h3 {[%clk 0:02:57]}  d5 {[%clk 0:02:57]} 4. Bg5 {[%clk 0:02:56]}  c5 {[%clk 0:02:57]} 5. c3 {[%clk 0:02:55]}  Qb6 {[%clk 0:02:56]} 6. Qb3 {[%clk 0:02:49]}  Qg6 {[%clk 0:02:55]} 7. Bxh4 {[%clk 0:02:37]}  Nc6 {[%clk 0:02:52]} 8. e3 {[%clk 0:02:34]}  c4 {[%clk 0:02:44]} 9. Qd1 {[%clk 0:02:29]}  Bf5 {[%clk 0:02:42]} 10. Bg3 {[%clk 0:02:20]}  e6 {[%clk 0:02:35]} 11. Nh4 {[%clk 0:02:11]}  Rxh4 {[%clk 0:02:24]} 12. Bxh4 {[%clk 0:02:11]}  Bd6 {[%clk 0:02:25]} 13. Nd2 {[%clk 0:01:58]}  Nf6 {[%clk 0:02:15]} 14. Bxf6 {[%clk 0:01:41]}  Qxf6 {[%clk 0:02:14]} 15. e4 {[%clk 0:01:33]}  dxe4 {[%clk 0:02:08]} 16. Nxc4 {[%clk 0:01:32]}  Bc7 {[%clk 0:02:07]} 17. Ne3 {[%clk 0:01:19]}  O-O-O {[%clk 0:02:06]} 18. Bb5 {[%clk 0:01:11]}  Ne7 {[%clk 0:01:58]} 19. Qa4 {[%clk 0:01:02]}  Qg5 {[%clk 0:01:52]} 20. O-O-O {[%clk 0:00:56]}  Bf4 {[%clk 0:01:49]} 21. g4 {[%clk 0:00:46]}  Bxe3+ {[%clk 0:01:49]} 22. fxe3 {[%clk 0:00:47]}  Qxe3+ {[%clk 0:01:50]} 23. Kb1 {[%clk 0:00:48]}  Bg6 {[%clk 0:01:48]} 24. Qxa7 {[%clk 0:00:44]}  Qf2 {[%clk 0:01:47]} 25. Rhe1 {[%clk 0:00:37]}  e3+ {[%clk 0:01:47]} 26. Ka1 {[%clk 0:00:35]}  Nd5 {[%clk 0:01:42]} 27. Qa8+ {[%clk 0:00:21]}  Kc7 {[%clk 0:01:39]} 28. Qa5+ {[%clk 0:00:21]}  Kc8 {[%clk 0:01:39]} 29. c4 {[%clk 0:00:14]}  Nf4 {[%clk 0:01:36]} 30. Qc3 {[%clk 0:00:08]}  e2 {[%clk 0:01:34]} 31. Rc1 {[%clk 0:00:07]}  Nd3 {[%clk 0:01:35]} 32. Qa5 {[%clk 0:00:03]}  Qxd4 {[%clk 0:01:32]} 33. Qa8+ {[%clk 0:00:03]}  Kc7 {[%clk 0:01:32]} 34. Qa5+ {[%clk 0:00:04]}  Kb8 {[%clk 0:01:32]} 35. Rb1 {[%clk 0:00:02]}  Nxe1 {[%clk 0:01:31]} 36. Qxe1 {[%clk 0:00:03]}  Bxb1 {[%clk 0:01:30]} 37. Qg3+ {[%clk 0:00:03]}  Qd6 {[%clk 0:01:30]} 0-1


[Site "https://www.chess.com"]

[Event "Titled Tuesday Blitz October 18 Late 2022"]
[White "Bluebaum, Matthias"]
[Black "miragha_yev"]
[WhiteFideId "24651516"]
[WhiteElo "2633"]
[BlackElo "2773"]
[Result "1-0"]
[Round "08"]
[TimeControl "180+1"]
[Date "2022.10.18"]
[WhiteClock "0:01:43"]
[BlackClock "0:01:02"]

1. d4 {[%clk 0:03:00]}  Nf6 {[%clk 0:02:59]} 2. c4 {[%clk 0:02:59]}  e6 {[%clk 0:03:00]} 3. Nc3 {[%clk 0:02:59]}  Bb4 {[%clk 0:03:00]} 4. e3 {[%clk 0:02:58]}  O-O {[%clk 0:03:00]} 5. Bd2 {[%clk 0:02:59]}  b6 {[%clk 0:02:59]} 6. Bd3 {[%clk 0:02:58]}  Bb7 {[%clk 0:03:00]} 7. Nf3 {[%clk 0:02:59]}  Bxc3 {[%clk 0:02:58]} 8. Bxc3 {[%clk 0:03:00]}  d6 {[%clk 0:02:58]} 9. Qc2 {[%clk 0:02:58]}  Nbd7 {[%clk 0:02:58]} 10. O-O {[%clk 0:02:56]}  Qe7 {[%clk 0:02:59]} 11. e4 {[%clk 0:02:57]}  e5 {[%clk 0:02:59]} 12. Rfe1 {[%clk 0:02:56]}  a5 {[%clk 0:02:56]} 13. b3 {[%clk 0:02:56]}  Rfe8 {[%clk 0:02:52]} 14. Rad1 {[%clk 0:02:56]}  Bc6 {[%clk 0:02:38]} 15. Bb2 {[%clk 0:02:53]}  Bb7 {[%clk 0:02:34]} 16. Nd2 {[%clk 0:02:41]}  Nh5 {[%clk 0:02:32]} 17. Bf1 {[%clk 0:02:28]}  Qg5 {[%clk 0:02:28]} 18. Nf3 {[%clk 0:02:27]}  Qf6 {[%clk 0:02:24]} 19. dxe5 {[%clk 0:02:24]}  Nxe5 {[%clk 0:02:23]} 20. Nxe5 {[%clk 0:02:22]}  dxe5 {[%clk 0:02:24]} 21. c5 {[%clk 0:02:22]}  Qe7 {[%clk 0:02:19]} 22. Ba3 {[%clk 0:02:07]}  Rad8 {[%clk 0:02:12]} 23. cxb6 {[%clk 0:01:55]}  Qxa3 {[%clk 0:02:10]} 24. Rxd8 {[%clk 0:01:55]}  Rxd8 {[%clk 0:02:10]} 25. Qxc7 {[%clk 0:01:56]}  Rf8 {[%clk 0:01:27]} 26. Qxb7 {[%clk 0:01:56]}  Nf4 {[%clk 0:01:28]} 27. Qc7 {[%clk 0:01:50]}  Ne6 {[%clk 0:01:26]} 28. Qxe5 {[%clk 0:01:49]}  Qb4 {[%clk 0:01:24]} 29. Rd1 {[%clk 0:01:47]}  Qxb6 {[%clk 0:01:22]} 30. Bc4 {[%clk 0:01:48]}  Rd8 {[%clk 0:01:20]} 31. Rxd8+ {[%clk 0:01:43]}  Qxd8 {[%clk 0:01:21]} 32. Qd5 {[%clk 0:01:42]}  Qxd5 {[%clk 0:01:15]} 33. Bxd5 {[%clk 0:01:43]}  Nd4 {[%clk 0:01:15]} 34. Kf1 {[%clk 0:01:42]}  Kf8 {[%clk 0:01:12]} 35. Ke1 {[%clk 0:01:42]}  Ke7 {[%clk 0:01:10]} 36. Kd2 {[%clk 0:01:42]}  f6 {[%clk 0:01:06]} 37. Kd3 {[%clk 0:01:42]}  Nb5 {[%clk 0:01:04]} 38. Kc4 {[%clk 0:01:42]}  Nc7 {[%clk 0:01:04]} 39. Kc5 {[%clk 0:01:42]}  Na6+ {[%clk 0:01:01]} 40. Kb6 {[%clk 0:01:42]}  Nb4 {[%clk 0:01:02]} 41. Kxa5 {[%clk 0:01:42]}  Nxa2 {[%clk 0:01:02]} 42. b4 {[%clk 0:01:43]}  Nc3 {[%clk 0:01:03]} 43. b5 {[%clk 0:01:43]}  Kd6 {[%clk 0:01:02]} 44. b6 {[%clk 0:01:43]} 1-0


[Site "https://www.chess.com"]

[Event "Titled Tuesday Blitz October 18 Late 2022"]
[White "Bortnyk, Mykola"]
[Black "Guliyev, Namig"]
[WhiteFideId "14120836"]
[BlackFideId "13400363"]
[WhiteElo "2582"]
[BlackElo "2526"]
[Result "1-0"]
[Round "08"]
[TimeControl "180+1"]
[Date "2022.10.18"]
[WhiteClock "0:00:38"]
[BlackClock "0:00:35"]

1. e4 {[%clk 0:03:00]}  e5 {[%clk 0:02:59]} 2. Nf3 {[%clk 0:03:00]}  Nf6 {[%clk 0:03:00]} 3. Nxe5 {[%clk 0:03:00]}  Nxe4 {[%clk 0:03:00]} 4. Qe2 {[%clk 0:02:57]}  Qe7 {[%clk 0:03:01]} 5. Qxe4 {[%clk 0:02:57]}  d6 {[%clk 0:03:01]} 6. d4 {[%clk 0:02:57]}  dxe5 {[%clk 0:03:02]} 7. Qxe5 {[%clk 0:02:54]}  Be6 {[%clk 0:02:46]} 8. Bb5+ {[%clk 0:02:51]}  c6 {[%clk 0:02:46]} 9. Bd3 {[%clk 0:02:49]}  Nd7 {[%clk 0:02:43]} 10. Qe2 {[%clk 0:02:49]}  O-O-O {[%clk 0:02:34]} 11. O-O {[%clk 0:02:43]}  g5 {[%clk 0:02:27]} 12. c4 {[%clk 0:02:36]}  Qf6 {[%clk 0:02:16]} 13. Nc3 {[%clk 0:02:19]}  Qxd4 {[%clk 0:02:04]} 14. Bxg5 {[%clk 0:02:18]}  Re8 {[%clk 0:02:04]} 15. Be3 {[%clk 0:02:18]}  Qe5 {[%clk 0:02:03]} 16. Rfe1 {[%clk 0:01:58]}  Bd6 {[%clk 0:01:59]} 17. g3 {[%clk 0:01:57]}  Bb8 {[%clk 0:01:55]} 18. Qf3 {[%clk 0:01:53]}  Qg7 {[%clk 0:01:49]} 19. Qh5 {[%clk 0:01:28]}  Ne5 {[%clk 0:01:45]} 20. Bf5 {[%clk 0:01:18]}  Nxc4 {[%clk 0:01:38]} 21. Rad1 {[%clk 0:01:18]}  Nxe3 {[%clk 0:01:15]} 22. Rxe3 {[%clk 0:01:19]}  Qf6 {[%clk 0:01:15]} 23. Rde1 {[%clk 0:01:15]}  Re7 {[%clk 0:01:12]} 24. Bxe6+ {[%clk 0:01:08]}  fxe6 {[%clk 0:01:13]} 25. Ne4 {[%clk 0:01:06]}  Qf5 {[%clk 0:01:07]} 26. Qh4 {[%clk 0:01:01]}  Rf7 {[%clk 0:01:01]} 27. R1e2 {[%clk 0:00:57]}  e5 {[%clk 0:01:00]} 28. Ng5 {[%clk 0:00:53]}  Rd7 {[%clk 0:00:59]} 29. Kg2 {[%clk 0:00:50]}  Qg6 {[%clk 0:00:56]} 30. Nf3 {[%clk 0:00:47]}  Qe6 {[%clk 0:00:47]} 31. b3 {[%clk 0:00:46]}  Rd5 {[%clk 0:00:47]} 32. Ng5 {[%clk 0:00:44]}  Qg6 {[%clk 0:00:46]} 33. Qh3+ {[%clk 0:00:44]}  Kd8 {[%clk 0:00:41]} 34. Ne6+ {[%clk 0:00:43]}  Ke7 {[%clk 0:00:40]} 35. Nf4 {[%clk 0:00:43]}  Qd6 {[%clk 0:00:40]} 36. Nxd5+ {[%clk 0:00:41]}  Qxd5+ {[%clk 0:00:41]} 37. f3 {[%clk 0:00:41]}  h5 {[%clk 0:00:39]} 38. Qh4+ {[%clk 0:00:41]}  Kd7 {[%clk 0:00:39]} 39. Qf6 {[%clk 0:00:39]}  Re8 {[%clk 0:00:37]} 40. Qf5+ {[%clk 0:00:38]}  Kd8 {[%clk 0:00:35]} 41. Rd3 {[%clk 0:00:38]} 1-0


[Site "https://www.chess.com"]

[Event "Titled Tuesday Blitz October 18 Late 2022"]
[White "Bortnyk, Olexandr"]
[Black "Bilych, Olexiy"]
[WhiteFideId "14120828"]
[BlackFideId "14156504"]
[WhiteElo "2723"]
[BlackElo "2320"]
[Result "1-0"]
[Round "08"]
[TimeControl "180+1"]
[Date "2022.10.18"]
[WhiteClock "0:01:21"]
[BlackClock "0:00:08"]

1. e4 {[%clk 0:03:00]}  e5 {[%clk 0:02:59]} 2. Nf3 {[%clk 0:03:00]}  Nc6 {[%clk 0:02:59]} 3. Bb5 {[%clk 0:03:00]}  Nf6 {[%clk 0:02:59]} 4. Qe2 {[%clk 0:03:01]}  Bc5 {[%clk 0:02:53]} 5. c3 {[%clk 0:02:59]}  Qe7 {[%clk 0:02:26]} 6. d3 {[%clk 0:02:46]}  O-O {[%clk 0:02:22]} 7. Bg5 {[%clk 0:02:44]}  d6 {[%clk 0:02:19]} 8. Nbd2 {[%clk 0:02:42]}  Nd8 {[%clk 0:02:07]} 9. d4 {[%clk 0:02:39]}  Bb6 {[%clk 0:02:06]} 10. Bc4 {[%clk 0:02:22]}  Ne6 {[%clk 0:02:03]} 11. Bxe6 {[%clk 0:02:22]}  Qxe6 {[%clk 0:02:02]} 12. d5 {[%clk 0:02:21]}  Qe7 {[%clk 0:02:00]} 13. O-O-O {[%clk 0:02:22]}  h6 {[%clk 0:01:55]} 14. Bh4 {[%clk 0:02:21]}  g5 {[%clk 0:01:51]} 15. Nxg5 {[%clk 0:02:21]}  hxg5 {[%clk 0:01:47]} 16. Bxg5 {[%clk 0:02:22]}  Kg7 {[%clk 0:01:44]} 17. Qf3 {[%clk 0:02:20]}  c5 {[%clk 0:01:17]} 18. Nf1 {[%clk 0:02:15]}  Bd8 {[%clk 0:01:09]} 19. h4 {[%clk 0:01:53]}  Qd7 {[%clk 0:01:07]} 20. Ne3 {[%clk 0:01:52]}  Nh7 {[%clk 0:01:01]} 21. Nf5+ {[%clk 0:01:52]}  Kh8 {[%clk 0:01:01]} 22. Qh5 {[%clk 0:01:45]}  f6 {[%clk 0:00:57]} 23. Bh6 {[%clk 0:01:43]}  Rg8 {[%clk 0:00:44]} 24. g4 {[%clk 0:01:39]}  Qa4 {[%clk 0:00:33]} 25. Nxd6 {[%clk 0:01:36]}  Rxg4 {[%clk 0:00:26]} 26. Rhg1 {[%clk 0:01:29]}  Qd7 {[%clk 0:00:09]} 27. Rxg4 {[%clk 0:01:26]}  Qxd6 {[%clk 0:00:08]} 28. Qe8+ {[%clk 0:01:21]} 1-0


[Site "https://www.chess.com"]

[Event "Titled Tuesday Blitz October 18 Late 2022"]
[White "Carbone, Diego"]
[Black "Janaszak, Dawid"]
[WhiteFideId "3002179"]
[BlackFideId "1119206"]
[WhiteElo "2243"]
[BlackElo "2226"]
[Result "1-0"]
[Round "08"]
[TimeControl "180+1"]
[Date "2022.10.19"]
[WhiteClock "0:00:31"]
[BlackClock "0:00:18"]

1. d4 {[%clk 0:03:00]}  Nf6 {[%clk 0:02:59]} 2. c4 {[%clk 0:02:58]}  e6 {[%clk 0:02:59]} 3. Nc3 {[%clk 0:02:58]}  Bb4 {[%clk 0:02:59]} 4. Qc2 {[%clk 0:02:59]}  c5 {[%clk 0:02:58]} 5. dxc5 {[%clk 0:02:58]}  Bxc5 {[%clk 0:02:57]} 6. Nf3 {[%clk 0:02:58]}  O-O {[%clk 0:02:54]} 7. a3 {[%clk 0:02:53]}  b6 {[%clk 0:02:53]} 8. Bg5 {[%clk 0:02:17]}  Bb7 {[%clk 0:02:49]} 9. Rd1 {[%clk 0:02:15]}  Nc6 {[%clk 0:02:35]} 10. e3 {[%clk 0:02:11]}  Be7 {[%clk 0:02:27]} 11. Be2 {[%clk 0:02:11]}  Rc8 {[%clk 0:02:18]} 12. O-O {[%clk 0:02:11]}  h6 {[%clk 0:02:12]} 13. Bf4 {[%clk 0:02:08]}  d6 {[%clk 0:01:59]} 14. b4 {[%clk 0:02:07]}  Nh5 {[%clk 0:01:55]} 15. Bxd6 {[%clk 0:02:01]}  Bxd6 {[%clk 0:01:54]} 16. Nb5 {[%clk 0:02:02]}  Bxh2+ {[%clk 0:01:00]} 17. Nxh2 {[%clk 0:01:54]}  Qg5 {[%clk 0:00:57]} 18. Bf3 {[%clk 0:01:48]}  Nd8 {[%clk 0:00:43]} 19. Rxd8 {[%clk 0:01:41]}  Bxf3 {[%clk 0:00:29]} 20. Rxf8+ {[%clk 0:01:40]}  Kxf8 {[%clk 0:00:27]} 21. Nxf3 {[%clk 0:01:41]}  Qxb5 {[%clk 0:00:27]} 22. Qh7 {[%clk 0:01:18]}  Qxc4 {[%clk 0:00:27]} 23. Nd4 {[%clk 0:01:15]}  Nf6 {[%clk 0:00:21]} 24. Qh8+ {[%clk 0:01:13]}  Ng8 {[%clk 0:00:22]} 25. b5 {[%clk 0:01:05]}  Qd5 {[%clk 0:00:20]} 26. a4 {[%clk 0:00:49]}  Rc5 {[%clk 0:00:19]} 27. Ra1 {[%clk 0:00:45]}  g6 {[%clk 0:00:17]} 28. a5 {[%clk 0:00:41]}  Qe5 {[%clk 0:00:16]} 29. Qxe5 {[%clk 0:00:32]}  Rxe5 {[%clk 0:00:17]} 30. axb6 {[%clk 0:00:33]}  axb6 {[%clk 0:00:17]} 31. Ra6 {[%clk 0:00:31]}  Nf6 {[%clk 0:00:17]} 32. Rxb6 {[%clk 0:00:31]}  Nd5 {[%clk 0:00:17]} 33. Rb8+ {[%clk 0:00:30]}  Ke7 {[%clk 0:00:18]} 34. Nc6+ {[%clk 0:00:30]}  Kd6 {[%clk 0:00:18]} 35. Nxe5 {[%clk 0:00:31]} 1-0


[Site "https://www.chess.com"]

[Event "Titled Tuesday Blitz October 18 Late 2022"]
[White "Decuigniere, Tom"]
[Black "Gonzalez, Francisco Silva"]
[WhiteFideId "26093820"]
[BlackFideId "1512285"]
[WhiteElo "2223"]
[BlackElo "2159"]
[Result "1-0"]
[Round "08"]
[TimeControl "180+1"]
[Date "2022.10.19"]
[WhiteClock "0:00:40"]
[BlackClock "0:01:19"]

1. c4 {[%clk 0:03:00]}  e6 {[%clk 0:02:59]} 2. g3 {[%clk 0:03:00]}  d5 {[%clk 0:02:59]} 3. Bg2 {[%clk 0:03:01]}  a6 {[%clk 0:02:59]} 4. Nf3 {[%clk 0:03:02]}  dxc4 {[%clk 0:02:59]} 5. a4 {[%clk 0:03:01]}  Nc6 {[%clk 0:02:59]} 6. Na3 {[%clk 0:02:59]}  Bb4 {[%clk 0:02:58]} 7. Nxc4 {[%clk 0:02:57]}  Nf6 {[%clk 0:02:57]} 8. O-O {[%clk 0:02:57]}  O-O {[%clk 0:02:56]} 9. d4 {[%clk 0:02:51]}  Re8 {[%clk 0:02:51]} 10. Bf4 {[%clk 0:02:46]}  Bd6 {[%clk 0:02:49]} 11. Nfe5 {[%clk 0:02:42]}  Ne7 {[%clk 0:02:33]} 12. e4 {[%clk 0:02:36]}  Bb4 {[%clk 0:02:18]} 13. Rc1 {[%clk 0:02:26]}  c6 {[%clk 0:02:18]} 14. Bg5 {[%clk 0:02:19]}  Ng6 {[%clk 0:02:17]} 15. Nxg6 {[%clk 0:02:17]}  fxg6 {[%clk 0:02:13]} 16. e5 {[%clk 0:02:17]}  h6 {[%clk 0:02:14]} 17. exf6 {[%clk 0:02:10]}  hxg5 {[%clk 0:02:14]} 18. f7+ {[%clk 0:01:59]}  Kxf7 {[%clk 0:02:14]} 19. Ne5+ {[%clk 0:02:00]}  Kg8 {[%clk 0:02:14]} 20. Qd3 {[%clk 0:01:58]}  Qf6 {[%clk 0:02:12]} 21. f4 {[%clk 0:01:53]}  Rd8 {[%clk 0:02:07]} 22. Qe4 {[%clk 0:01:32]}  Qf5 {[%clk 0:02:06]} 23. fxg5 {[%clk 0:01:23]}  Qxe4 {[%clk 0:02:06]} 24. Bxe4 {[%clk 0:01:24]}  Rxd4 {[%clk 0:02:06]} 25. Bxg6 {[%clk 0:01:17]}  Rd8 {[%clk 0:02:00]} 26. Bf7+ {[%clk 0:01:11]}  Kh7 {[%clk 0:02:00]} 27. Rf4 {[%clk 0:01:06]}  Bc5+ {[%clk 0:01:51]} 28. Rxc5 {[%clk 0:01:05]}  g6 {[%clk 0:01:52]} 29. Bxg6+ {[%clk 0:01:03]}  Kg8 {[%clk 0:01:51]} 30. Rc2 {[%clk 0:00:51]}  Rd5 {[%clk 0:01:39]} 31. Re2 {[%clk 0:00:45]}  Bd7 {[%clk 0:01:38]} 32. h4 {[%clk 0:00:45]}  Be8 {[%clk 0:01:38]} 33. Bxe8 {[%clk 0:00:43]}  Rxe8 {[%clk 0:01:38]} 34. Ng4 {[%clk 0:00:42]}  Kg7 {[%clk 0:01:37]} 35. Kg2 {[%clk 0:00:41]}  e5 {[%clk 0:01:36]} 36. Rfe4 {[%clk 0:00:38]}  Kg6 {[%clk 0:01:33]} 37. Nf6 {[%clk 0:00:38]}  Rdd8 {[%clk 0:01:29]} 38. Nxe8 {[%clk 0:00:38]}  Rxe8 {[%clk 0:01:29]} 39. Rxe5 {[%clk 0:00:38]}  Rd8 {[%clk 0:01:29]} 40. Re6+ {[%clk 0:00:39]}  Kf5 {[%clk 0:01:20]} 41. Rf6+ {[%clk 0:00:39]}  Kg4 {[%clk 0:01:19]} 42. Re4+ {[%clk 0:00:40]} 1-0


[Site "https://www.chess.com"]

[Event "Titled Tuesday Blitz October 18 Late 2022"]
[White "Domingo Nunez, Ruben"]
[Black "Melikhov, Evgeny V."]
[WhiteFideId "22245570"]
[BlackFideId "4122046"]
[WhiteElo "2406"]
[BlackElo "2169"]
[Result "0-1"]
[Round "08"]
[TimeControl "180+1"]
[Date "2022.10.19"]
[WhiteClock "0:00:01"]
[BlackClock "0:00:08"]

1. Nf3 {[%clk 0:03:00]}  f5 {[%clk 0:02:56]} 2. e3 {[%clk 0:02:56]}  Nf6 {[%clk 0:02:52]} 3. d4 {[%clk 0:02:55]}  g6 {[%clk 0:02:48]} 4. b3 {[%clk 0:02:54]}  Bg7 {[%clk 0:02:47]} 5. Bb2 {[%clk 0:02:54]}  O-O {[%clk 0:02:46]} 6. Be2 {[%clk 0:02:54]}  d6 {[%clk 0:02:45]} 7. O-O {[%clk 0:02:55]}  c6 {[%clk 0:02:42]} 8. c4 {[%clk 0:02:55]}  Nbd7 {[%clk 0:02:40]} 9. Re1 {[%clk 0:02:52]}  h6 {[%clk 0:02:37]} 10. d5 {[%clk 0:02:50]}  a5 {[%clk 0:02:20]} 11. dxc6 {[%clk 0:02:25]}  bxc6 {[%clk 0:02:20]} 12. Nd4 {[%clk 0:02:25]}  Ne5 {[%clk 0:02:02]} 13. f4 {[%clk 0:02:24]}  Neg4 {[%clk 0:02:02]} 14. Bf3 {[%clk 0:01:51]}  Qb6 {[%clk 0:01:19]} 15. h3 {[%clk 0:01:33]}  e5 {[%clk 0:01:19]} 16. hxg4 {[%clk 0:01:20]}  exd4 {[%clk 0:01:15]} 17. Bxd4 {[%clk 0:01:21]}  Qc7 {[%clk 0:01:08]} 18. gxf5 {[%clk 0:01:06]}  Bxf5 {[%clk 0:01:03]} 19. Nc3 {[%clk 0:01:02]}  Rae8 {[%clk 0:00:59]} 20. e4 {[%clk 0:00:59]}  Bc8 {[%clk 0:00:51]} 21. e5 {[%clk 0:00:58]}  dxe5 {[%clk 0:00:48]} 22. fxe5 {[%clk 0:00:49]}  Nd7 {[%clk 0:00:47]} 23. e6 {[%clk 0:00:48]}  Nf6 {[%clk 0:00:41]} 24. Bc5 {[%clk 0:00:37]}  Bxe6 {[%clk 0:00:39]} 25. Bxf8 {[%clk 0:00:37]}  Bxf8 {[%clk 0:00:40]} 26. Qd4 {[%clk 0:00:17]}  Bg7 {[%clk 0:00:38]} 27. Qd2 {[%clk 0:00:03]}  Rd8 {[%clk 0:00:31]} 28. Qe3 {[%clk 0:00:02]}  Bf5 {[%clk 0:00:27]} 29. Rad1 {[%clk 0:00:02]}  Re8 {[%clk 0:00:25]} 30. Qc5 {[%clk 0:00:02]}  Rxe1+ {[%clk 0:00:22]} 31. Rxe1 {[%clk 0:00:03]}  Qg3 {[%clk 0:00:17]} 32. Qf2 {[%clk 0:00:02]}  Qf4 {[%clk 0:00:14]} 33. Bxc6 {[%clk 0:00:02]}  Qg5 {[%clk 0:00:10]} 34. Bf3 {[%clk 0:00:01]}  Kh7 {[%clk 0:00:08]} 35. Nd5 {[%clk 0:00:01]}  Ng4 {[%clk 0:00:08]} 0-1


[Site "https://www.chess.com"]